[Event "FIDE U16 Olympiad_boards_81-124"]
[Site "Eindhoven, Netherlands"]
[Date "2023.08.14"]
[Round "2.26"]
[White "Milovic, Ilija"]
[Black "Zangrilli, Leonardo"]
[Result "1-0"]
[TimeControl "45min+10sec"]
[WhiteElo "1533"]
[BlackElo "1205"]

1. d4 {[%clk 00:45:17]} {[%emt 00:00:02]} Nf6 {[%clk 00:45:04]} {[%emt
00:00:16]} 2. c4 {[%clk 00:45:25]} {[%emt 00:00:02]} d6 {[%clk 00:45:11]}
{[%emt 00:00:04]} 3. Nc3 {[%clk 00:45:06]} {[%emt 00:00:28]} g6 {[%clk
00:45:14]} {[%emt 00:00:07]} 4. e4 {[%clk 00:44:58]} {[%emt 00:00:18]} Bg7
{[%clk 00:45:10]} {[%emt 00:00:14]} 5. h3 {[%clk 00:44:35]} {[%emt 00:00:33]}
O-O {[%clk 00:44:26]} {[%emt 00:00:54]} 6. Be3 {[%clk 00:44:32]} {[%emt
00:00:14]} e5 {[%clk 00:37:04]} {[%emt 00:07:32]} 7. d5 {[%clk 00:44:31]}
{[%emt 00:00:10]} Bd7 {[%clk 00:34:50]} {[%emt 00:02:24]} 8. g4 {[%clk
00:44:12]} {[%emt 00:00:29]} Qe7 {[%clk 00:32:21]} {[%emt 00:02:39]} 9. Nge2
{[%clk 00:42:45]} {[%emt 00:01:36]} a6 {[%clk 00:30:14]} {[%emt 00:02:18]} 10.
Ng3 {[%clk 00:41:47]} {[%emt 00:01:08]} c6 {[%clk 00:28:11]} {[%emt 00:02:14]}
11. Be2 {[%clk 00:35:01]} {[%emt 00:06:55]} cxd5 {[%clk 00:25:28]} {[%emt
00:02:53]} 12. cxd5 {[%clk 00:34:57]} {[%emt 00:00:13]} b5 {[%clk 00:24:06]}
{[%emt 00:01:33]} 13. a3 {[%clk 00:34:01]} {[%emt 00:01:07]} Ne8 {[%clk
00:21:17]} {[%emt 00:02:58]} 14. Qd2 {[%clk 00:32:14]} {[%emt 00:01:57]} f5
{[%emt 00:04:35]} 15. gxf5 {[%clk 00:28:46]} {[%emt 00:03:36]} gxf5 {[%clk
00:17:01]} {[%emt 00:00:04]} 16. exf5 {[%clk 00:28:12]} {[%emt 00:00:43]} Bxf5
{[%clk 00:16:35]} {[%emt 00:00:36]} 17. Nxf5 {[%clk 00:28:19]} {[%emt
00:00:04]} Rxf5 {[%clk 00:16:43]} {[%emt 00:00:01]} 18. Bd3 {[%clk 00:28:17]}
{[%emt 00:00:11]} e4 {[%clk 00:12:46]} {[%emt 00:04:08]} 19. Nxe4 {[%clk
00:25:36]} {[%emt 00:02:50]} Re5 {[%clk 00:09:38]} {[%emt 00:03:19]} 20. Nc3
{[%clk 00:24:21]} {[%emt 00:01:24]} Bh6 {[%clk 00:07:19]} {[%emt 00:02:30]} 21.
Rg1+ {[%clk 00:22:22]} {[%emt 00:02:09]} Kh8 {[%clk 00:06:22]} {[%emt
00:01:07]} 22. Rg3 {[%clk 00:21:43]} {[%emt 00:00:50]} Nf6 {[%clk 00:05:00]}
{[%emt 00:01:31]} 23. O-O-O {[%clk 00:20:22]} {[%emt 00:01:30]} Bxe3 {[%clk
00:04:18]} {[%emt 00:00:53]} 24. Rxe3 {[%clk 00:20:24]} {[%emt 00:00:08]} Nbd7
{[%clk 00:03:48]} {[%emt 00:00:41]} 25. Rde1 {[%clk 00:18:24]} {[%emt
00:02:10]} Rc8 {[%clk 00:03:14]} {[%emt 00:00:44]} 26. Kb1 {[%clk 00:17:57]}
{[%emt 00:00:37]} Nb6 {[%clk 00:02:40]} {[%emt 00:00:45]} 27. Rxe5 {[%clk
00:15:16]} {[%emt 00:02:50]} dxe5 {[%clk 00:02:43]} {[%emt 00:00:07]} 28. f4
{[%clk 00:12:54]} {[%emt 00:02:32]} Nfxd5 {[%clk 00:02:25]} {[%emt 00:00:29]}
29. Nxd5 {[%clk 00:12:51]} {[%emt 00:00:13]} Nxd5 {[%clk 00:02:29]} {[%emt
00:00:06]} 30. Rxe5 {[%clk 00:12:51]} {[%emt 00:00:09]} Qf7 {[%clk 00:02:23]}
{[%emt 00:00:15]} 31. Bf5 {[%clk 00:06:54]} {[%emt 00:06:08]} Rd8 {[%clk
00:01:49]} {[%emt 00:00:44]} 32. Qd4 {[%clk 00:03:54]} {[%emt 00:03:10]} Qf6
{[%clk 00:00:51]} {[%emt 00:01:08]} 33. Be4 {[%clk 00:02:29]} {[%emt 00:01:35]}
Nc7 {[%clk 00:00:28]} {[%emt 00:00:33]} 34. Qc5 {[%clk 00:00:20]} {[%emt
00:02:19]} Ne6 {[%clk 00:00:28]} {[%emt 00:00:10]} 35. Qc3 {[%clk 00:00:18]}
{[%emt 00:00:10]} Rd1+ {[%clk 00:00:15]} {[%emt 00:00:25]} 36. Ka2 {[%clk
00:00:25]} {[%emt 00:00:03]} Kg8 {[%clk 00:00:18]} {[%emt 00:00:08]} 37. Bd5
{[%clk 00:00:23]} {[%emt 00:00:11]} Kf7 {[%clk 00:00:12]} {[%emt 00:00:16]} 38.
Bxe6+ {[%clk 00:00:28]} {[%emt 00:00:05]} Qxe6+ {[%clk 00:00:19]} {[%emt
00:00:03]} 39. Rxe6 {[%clk 00:00:36]} {[%emt 00:00:02]} Kxe6 {[%clk 00:00:15]}
{[%emt 00:00:01]} 1-0

[Event "FIDE U16 Olympiad_boards_81-124"]
[Site "Eindhoven, Netherlands"]
[Date "2023.08.14"]
[Round "2.27"]
[White "Grima Bongailas, Isaac"]
[Black "Radulovic, Vasilije"]
[Result "0-1"]
[TimeControl "45min+10sec"]
[WhiteElo "1270"]
[BlackElo "1453"]

1. d4 {[%clk 00:45:18]} {[%emt 00:00:02]} d5 {[%clk 00:45:19]} {[%emt
00:00:02]} 2. c4 {[%clk 00:45:23]} {[%emt 00:00:05]} e6 {[%clk 00:45:26]}
{[%emt 00:00:02]} 3. g3 {[%clk 00:45:31]} {[%emt 00:00:03]} Nf6 {[%clk
00:45:22]} {[%emt 00:00:14]} 4. Bg2 {[%clk 00:45:36]} {[%emt 00:00:04]} c6
{[%clk 00:45:27]} {[%emt 00:00:05]} 5. Nc3 {[%clk 00:45:28]} {[%emt 00:00:18]}
Be7 {[%clk 00:45:19]} {[%emt 00:00:19]} 6. cxd5 {[%clk 00:45:12]} {[%emt
00:00:26]} exd5 {[%clk 00:45:21]} {[%emt 00:00:08]} 7. Nf3 {[%clk 00:45:11]}
{[%emt 00:00:10]} Bf5 {[%clk 00:45:15]} {[%emt 00:00:16]} 8. O-O {[%clk
00:44:10]} {[%emt 00:01:11]} O-O {[%clk 00:45:22]} {[%emt 00:00:03]} 9. Re1
{[%clk 00:43:25]} {[%emt 00:00:55]} Ne4 {[%clk 00:41:41]} {[%emt 00:03:52]} 10.
Nd2 {[%clk 00:40:20]} {[%emt 00:03:15]} Nxc3 {[%clk 00:41:19]} {[%emt
00:00:31]} 11. bxc3 {[%clk 00:40:21]} {[%emt 00:00:09]} Nd7 {[%clk 00:41:22]}
{[%emt 00:00:08]} 12. e4 {[%clk 00:35:45]} {[%emt 00:04:46]} dxe4 {[%clk
00:39:57]} {[%emt 00:01:35]} 13. Nxe4 {[%clk 00:35:44]} {[%emt 00:00:10]} Nf6
{[%clk 00:38:17]} {[%emt 00:01:50]} 14. Nxf6+ {[%clk 00:33:23]} {[%emt
00:02:31]} Bxf6 {[%clk 00:38:17]} {[%emt 00:00:11]} 15. Bf4 {[%clk 00:33:12]}
{[%emt 00:00:21]} Qa5 {[%clk 00:31:38]} {[%emt 00:06:49]} 16. Qd2 {[%clk
00:29:17]} {[%emt 00:04:05]} Rad8 {[%clk 00:30:38]} {[%emt 00:01:09]} 17. Be5
{[%clk 00:26:47]} {[%emt 00:02:38]} Bxe5 {[%clk 00:30:38]} {[%emt 00:00:13]} 18.
Rxe5 {[%clk 00:26:36]} {[%emt 00:00:18]} Qxe5 {[%clk 00:30:45]} {[%emt
00:00:04]} 19. Qb2 {[%clk 00:24:03]} {[%emt 00:02:44]} Qc7 {[%clk 00:30:36]}
{[%emt 00:00:18]} 20. Re1 {[%clk 00:23:34]} {[%emt 00:00:39]} Rfe8 {[%clk
00:30:40]} {[%emt 00:00:07]} 21. Re3 {[%clk 00:23:11]} {[%emt 00:00:33]} Rxe3
{[%clk 00:30:41]} {[%emt 00:00:10]} 22. fxe3 {[%clk 00:23:20]} {[%emt
00:00:01]} Qe7 {[%clk 00:30:37]} {[%emt 00:00:13]} 23. Qe2 {[%clk 00:22:31]}
{[%emt 00:00:59]} Re8 {[%clk 00:30:30]} {[%emt 00:00:18]} 24. Kf2 {[%clk
00:22:11]} {[%emt 00:00:29]} Be4 {[%clk 00:29:50]} {[%emt 00:00:51]} 25. Bxe4
{[%clk 00:21:43]} {[%emt 00:00:38]} Qxe4 {[%clk 00:29:58]} {[%emt 00:00:01]} 26.
c4 {[%clk 00:21:34]} {[%emt 00:00:19]} Qf5+ {[%clk 00:29:50]} {[%emt 00:00:17]}
27. Kg2 {[%clk 00:21:13]} {[%emt 00:00:32]} Qf6 {[%clk 00:29:33]} {[%emt
00:00:28]} 28. Qd2 {[%clk 00:20:38]} {[%emt 00:00:44]} Qe6 {[%clk 00:29:26]}
{[%emt 00:00:18]} 29. Kf2 {[%clk 00:18:40]} {[%emt 00:02:08]} Qxc4 {[%clk
00:29:29]} {[%emt 00:00:06]} 30. Kg2 {[%clk 00:17:24]} {[%emt 00:01:26]} g6
{[%clk 00:28:24]} {[%emt 00:01:15]} 31. Kf2 {[%clk 00:17:12]} {[%emt 00:00:23]}
Rd8 {[%clk 00:28:23]} {[%emt 00:00:10]} 32. Ke1 {[%clk 00:15:39]} {[%emt
00:01:43]} c5 {[%clk 00:28:17]} {[%emt 00:00:16]} 33. Qa5 {[%clk 00:14:49]}
{[%emt 00:01:00]} Qb4+ {[%clk 00:28:25]} {[%emt 00:00:02]} 34. Qxb4 {[%clk
00:14:58]} cxb4 {[%clk 00:28:34]} {[%emt 00:00:01]} 35. Kd2 {[%clk 00:15:08]}
a5 {[%clk 00:28:25]} {[%emt 00:00:19]} 36. Kd3 {[%clk 00:15:15]} {[%emt
00:00:03]} b5 {[%clk 00:28:28]} {[%emt 00:00:06]} 37. e4 {[%clk 00:15:23]}
{[%emt 00:00:02]} a4 {[%clk 00:28:06]} {[%emt 00:00:32]} 38. d5 {[%clk
00:15:30]} {[%emt 00:00:04]} f6 {[%clk 00:28:06]} {[%emt 00:00:10]} 39. Kc2
{[%clk 00:15:03]} {[%emt 00:00:38]} Rc8+ {[%clk 00:27:56]} {[%emt 00:00:19]} 40.
Kd3 {[%clk 00:15:07]} {[%emt 00:00:06]} b3 {[%clk 00:27:55]} {[%emt 00:00:11]}
0-1

[Event "FIDE U16 Olympiad_boards_81-124"]
[Site "Eindhoven, Netherlands"]
[Date "2023.08.14"]
[Round "2.28"]
[White "Mosurovic, Milena"]
[Black "Thornton, Hayley"]
[Result "1-0"]
[TimeControl "45min+10sec"]
[WhiteElo "1646"]
[BlackElo "1047"]

1. e4 {[%clk 00:45:17]} {[%emt 00:00:02]} e6 {[%clk 00:45:19]} {[%emt
00:00:02]} 2. d3 {[%clk 00:45:26]} {[%emt 00:00:01]} d5 {[%clk 00:45:27]}
{[%emt 00:00:01]} 3. Nd2 {[%clk 00:45:35]} {[%emt 00:00:02]} Nf6 {[%clk
00:45:28]} {[%emt 00:00:09]} 4. Ngf3 {[%clk 00:45:41]} {[%emt 00:00:03]} Be7
{[%clk 00:43:12]} {[%emt 00:02:27]} 5. g3 {[%clk 00:45:44]} {[%emt 00:00:07]}
O-O {[%clk 00:37:53]} {[%emt 00:05:29]} 6. Bg2 {[%clk 00:45:48]} {[%emt
00:00:05]} b6 {[%clk 00:36:01]} {[%emt 00:02:03]} 7. O-O {[%clk 00:43:19]}
{[%emt 00:02:39]} Bb7 {[%clk 00:35:59]} {[%emt 00:00:11]} 8. e5 {[%clk
00:41:50]} {[%emt 00:01:39]} Nfd7 {[%clk 00:35:56]} {[%emt 00:00:14]} 9. c3
{[%clk 00:39:49]} {[%emt 00:02:11]} c5 {[%clk 00:35:58]} {[%emt 00:00:08]} 10.
d4 {[%clk 00:39:33]} {[%emt 00:00:26]} Nc6 {[%clk 00:34:58]} {[%emt 00:01:10]}
11. Re1 {[%clk 00:38:06]} {[%emt 00:01:36]} cxd4 {[%clk 00:31:44]} {[%emt
00:03:25]} 12. cxd4 {[%clk 00:38:01]} {[%emt 00:00:15]} Rc8 {[%clk 00:31:12]}
{[%emt 00:00:41]} 13. a3 {[%clk 00:32:38]} {[%emt 00:05:33]} b5 {[%clk
00:26:04]} {[%emt 00:05:19]} 14. h4 {[%clk 00:29:08]} {[%emt 00:03:39]} Qb6
{[%clk 00:22:22]} {[%emt 00:03:53]} 15. Nf1 {[%clk 00:26:17]} {[%emt 00:03:01]}
b4 {[%clk 00:20:50]} {[%emt 00:01:41]} 16. a4 {[%clk 00:22:11]} {[%emt
00:04:16]} b3 {[%clk 00:18:44]} {[%emt 00:02:17]} 17. h5 {[%clk 00:20:49]}
{[%emt 00:01:32]} Nb4 {[%clk 00:18:23]} {[%emt 00:00:31]} 18. Ne3 {[%clk
00:12:14]} {[%emt 00:08:44]} Nc2 {[%clk 00:15:53]} {[%emt 00:02:40]} 19. Nxc2
{[%clk 00:12:02]} {[%emt 00:00:22]} bxc2 {[%clk 00:16:01]} {[%emt 00:00:02]} 20.
Qe2 {[%clk 00:11:47]} {[%emt 00:00:25]} Ba6 {[%clk 00:15:14]} {[%emt 00:00:58]}
21. Qe3 {[%clk 00:11:43]} {[%emt 00:00:14]} Bb4 {[%clk 00:14:44]} {[%emt
00:00:41]} 22. Nd2 {[%clk 00:10:31]} {[%emt 00:01:21]} Rc7 {[%clk 00:12:09]}
{[%emt 00:02:45]} 23. h6 {[%clk 00:08:57]} {[%emt 00:01:44]} g6 {[%clk
00:11:59]} {[%emt 00:00:20]} 24. Bf1 {[%clk 00:06:00]} {[%emt 00:03:07]} Rfc8
{[%clk 00:08:05]} {[%emt 00:04:04]} 25. a5 {[%clk 00:04:18]} {[%emt 00:01:51]}
Bxa5 {[%clk 00:07:18]} {[%emt 00:00:58]} 26. Bxa6 {[%clk 00:04:24]} {[%emt
00:00:03]} Qxa6 {[%clk 00:07:27]} {[%emt 00:00:02]} 27. Nb3 {[%clk 00:04:03]}
{[%emt 00:00:31]} Qb6 {[%clk 00:01:07]} {[%emt 00:06:30]} 28. Nxa5 {[%clk
00:03:13]} {[%emt 00:01:00]} Nb8 {[%clk 00:00:42]} {[%emt 00:00:36]} 29. Qf4
{[%clk 00:02:22]} {[%emt 00:01:00]} Qb4 {[%clk 00:00:47]} {[%emt 00:00:05]} 30.
Bd2 {[%clk 00:01:23]} {[%emt 00:01:08]} Qxb2 {[%clk 00:00:51]} {[%emt
00:00:06]} 31. Qf6 {[%clk 00:01:29]} {[%emt 00:00:04]} Kf8 {[%clk 00:00:56]}
{[%emt 00:00:06]} 32. Bg5 {[%clk 00:01:03]} {[%emt 00:00:35]} Ke8 {[%clk
00:00:34]} {[%emt 00:00:33]} 33. Qg7 {[%clk 00:00:54]} {[%emt 00:00:19]} c1=Q
{[%emt 00:00:08]} 34. Qg8+ {[%clk 00:00:50]} {[%emt 00:00:13]} Kd7 {[%clk
00:00:45]} {[%emt 00:00:02]} 35. Qxf7# {[%clk 00:00:58]} {[%emt 00:00:02]} 1-0

[Event "FIDE U16 Olympiad_boards_81-124"]
[Site "Eindhoven, Netherlands"]
[Date "2023.08.14"]
[Round "2.29"]
[White "Hernandez Mendez, Iker"]
[Black "Coetsee, Dewald"]
[Result "1-0"]
[TimeControl "45min+10sec"]
[WhiteElo "1686"]
[BlackElo "1276"]

1. e4 {[%clk 00:45:17]} {[%emt 00:00:03]} c5 {[%clk 00:45:14]} {[%emt
00:00:06]} 2. Nf3 {[%clk 00:45:23]} {[%emt 00:00:03]} e6 {[%clk 00:45:21]}
{[%emt 00:00:03]} 3. d4 {[%clk 00:44:56]} {[%emt 00:00:38]} cxd4 {[%clk
00:45:29]} {[%emt 00:00:02]} 4. Nxd4 {[%clk 00:45:03]} {[%emt 00:00:03]} Nf6
{[%clk 00:45:37]} {[%emt 00:00:02]} 5. Nc3 {[%clk 00:45:11]} {[%emt 00:00:01]}
d6 {[%clk 00:45:46]} {[%emt 00:00:02]} 6. g4 {[%clk 00:45:07]} {[%emt
00:00:14]} h6 {[%clk 00:43:58]} {[%emt 00:01:58]} 7. h4 {[%clk 00:43:13]}
{[%emt 00:02:04]} Nc6 {[%clk 00:43:25]} {[%emt 00:00:45]} 8. Rg1 {[%clk
00:42:31]} {[%emt 00:00:51]} Nxd4 {[%clk 00:43:08]} {[%emt 00:00:28]} 9. Qxd4
{[%clk 00:42:39]} {[%emt 00:00:02]} e5 {[%clk 00:43:13]} {[%emt 00:00:04]} 10.
Qd1 {[%clk 00:40:30]} {[%emt 00:02:18]} a6 {[%clk 00:40:18]} {[%emt 00:03:07]}
11. g5 {[%clk 00:38:46]} {[%emt 00:01:53]} hxg5 {[%clk 00:39:09]} {[%emt
00:01:18]} 12. hxg5 {[%clk 00:38:53]} {[%emt 00:00:03]} Nd7 {[%clk 00:37:04]}
{[%emt 00:02:15]} 13. g6 {[%clk 00:37:12]} {[%emt 00:01:51]} fxg6 {[%clk
00:31:43]} {[%emt 00:05:32]} 14. Qg4 {[%clk 00:36:46]} {[%emt 00:00:36]} g5
{[%clk 00:26:06]} {[%emt 00:05:46]} 15. Bxg5 {[%clk 00:36:35]} {[%emt
00:00:21]} Nf6 {[%clk 00:26:11]} {[%emt 00:00:06]} 16. Bxf6 {[%clk 00:35:43]}
{[%emt 00:01:02]} Bxg4 {[%clk 00:25:37]} {[%emt 00:00:45]} 17. Bxd8 {[%clk
00:35:49]} {[%emt 00:00:04]} Be6 {[%clk 00:22:42]} {[%emt 00:03:04]} 18. Bb6
{[%clk 00:34:53]} {[%emt 00:01:06]} Rc8 {[%clk 00:22:39]} {[%emt 00:00:13]} 19.
O-O-O {[%clk 00:34:49]} {[%emt 00:00:14]} g5 {[%clk 00:22:42]} {[%emt
00:00:07]} 20. Be3 {[%clk 00:33:05]} {[%emt 00:01:53]} g4 {[%clk 00:22:51]}
{[%emt 00:00:02]} 21. Be2 {[%clk 00:32:40]} {[%emt 00:00:35]} Rg8 {[%clk
00:21:31]} {[%emt 00:01:30]} 22. Rh1 {[%clk 00:29:36]} {[%emt 00:03:15]} b5
{[%clk 00:21:15]} {[%emt 00:00:26]} 23. Rh7 {[%clk 00:29:02]} {[%emt 00:00:42]}
g3 {[%clk 00:19:40]} {[%emt 00:01:46]} 24. Bh5+ {[%clk 00:28:56]} {[%emt
00:00:16]} Kd8 {[%clk 00:19:48]} {[%emt 00:00:02]} 25. Bb6+ {[%clk 00:29:01]}
{[%emt 00:00:04]} 1-0

[Event "FIDE U16 Olympiad_boards_81-124"]
[Site "Eindhoven, Netherlands"]
[Date "2023.08.14"]
[Round "2.30"]
[White "Strong, Davida"]
[Black "Thogata, Randheer"]
[Result "1-0"]
[TimeControl "45min+10sec"]
[WhiteElo "1379"]
[BlackElo "1636"]

1. e4 {[%clk 00:45:18]} {[%emt 00:00:02]} c5 {[%clk 00:45:17]} {[%emt
00:00:04]} 2. Nf3 {[%clk 00:45:25]} {[%emt 00:00:04]} d6 {[%clk 00:45:23]}
{[%emt 00:00:02]} 3. c3 {[%clk 00:45:15]} {[%emt 00:00:20]} Nf6 {[%clk
00:45:23]} {[%emt 00:00:10]} 4. Be2 {[%clk 00:45:19]} {[%emt 00:00:07]} g6
{[%clk 00:45:03]} {[%emt 00:00:29]} 5. O-O {[%clk 00:45:13]} {[%emt 00:00:17]}
Bg7 {[%clk 00:45:10]} {[%emt 00:00:03]} 6. Qc2 {[%clk 00:45:03]} {[%emt
00:00:19]} Qc7 {[%clk 00:44:57]} {[%emt 00:00:23]} 7. d3 {[%clk 00:43:34]}
{[%emt 00:01:40]} O-O {[%clk 00:44:45]} {[%emt 00:00:21]} 8. h3 {[%clk
00:42:59]} {[%emt 00:00:46]} e5 {[%clk 00:43:57]} {[%emt 00:00:58]} 9. Rd1
{[%clk 00:42:10]} {[%emt 00:00:58]} b6 {[%clk 00:41:31]} {[%emt 00:02:36]} 10.
Nbd2 {[%clk 00:41:48]} {[%emt 00:00:32]} Bb7 {[%clk 00:40:53]} {[%emt
00:00:49]} 11. Nf1 {[%clk 00:41:22]} {[%emt 00:00:36]} d5 {[%clk 00:38:10]}
{[%emt 00:02:53]} 12. exd5 {[%clk 00:40:16]} {[%emt 00:01:16]} Nxd5 {[%clk
00:38:17]} {[%emt 00:00:03]} 13. Ng3 {[%clk 00:40:06]} {[%emt 00:00:20]} Nd7
{[%clk 00:36:24]} {[%emt 00:02:04]} 14. a3 {[%clk 00:35:48]} {[%emt 00:04:27]}
Rfe8 {[%clk 00:30:03]} {[%emt 00:06:31]} 15. Nd2 {[%clk 00:35:05]} {[%emt
00:00:54]} Rad8 {[%clk 00:28:21]} {[%emt 00:01:51]} 16. Nc4 {[%clk 00:34:21]}
{[%emt 00:00:53]} Nf8 {[%clk 00:23:53]} {[%emt 00:04:38]} 17. Ne4 {[%clk
00:30:45]} {[%emt 00:03:47]} h6 {[%clk 00:19:52]} {[%emt 00:04:11]} 18. Bf3
{[%clk 00:27:48]} {[%emt 00:03:06]} f5 {[%clk 00:15:26]} {[%emt 00:04:36]} 19.
Ned6 {[%clk 00:24:19]} {[%emt 00:03:40]} Re7 {[%clk 00:11:58]} {[%emt
00:03:38]} 20. Nxb7 {[%clk 00:24:00]} {[%emt 00:00:29]} Qxb7 {[%clk 00:12:07]}
21. Nxe5 {[%clk 00:17:47]} {[%emt 00:06:22]} Rxe5 {[%clk 00:09:13]} {[%emt
00:03:04]} 22. c4 {[%clk 00:17:37]} {[%emt 00:00:21]} Qd7 {[%clk 00:08:07]}
{[%emt 00:01:16]} 23. Bxd5+ {[%clk 00:17:42]} {[%emt 00:00:05]} Kh7 {[%clk
00:08:15]} {[%emt 00:00:01]} 24. Bf4 {[%clk 00:17:15]} {[%emt 00:00:39]} Re7
{[%clk 00:08:09]} {[%emt 00:00:15]} 25. Re1 {[%clk 00:15:57]} {[%emt 00:01:28]}
Rde8 {[%clk 00:07:58]} {[%emt 00:00:22]} 26. Rxe7 {[%clk 00:15:46]} {[%emt
00:00:20]} Qxe7 {[%clk 00:07:47]} {[%emt 00:00:20]} 27. Bd2 {[%clk 00:15:10]}
{[%emt 00:00:47]} Qd6 {[%clk 00:07:09]} {[%emt 00:00:49]} 28. Bc3 {[%clk
00:14:05]} {[%emt 00:01:14]} Bxc3 {[%clk 00:03:22]} {[%emt 00:03:57]} 29. Qxc3
{[%clk 00:14:13]} {[%emt 00:00:02]} Nd7 {[%clk 00:03:31]} 30. d4 {[%clk
00:13:20]} {[%emt 00:01:03]} Re2 {[%clk 00:02:22]} {[%emt 00:01:18]} 31. b4
{[%clk 00:10:30]} {[%emt 00:03:00]} Qf4 {[%clk 00:02:01]} {[%emt 00:00:32]} 32.
Bf3 {[%clk 00:10:19]} {[%emt 00:00:21]} cxd4 {[%clk 00:02:10]} {[%emt
00:00:02]} 33. Qb3 {[%clk 00:09:05]} {[%emt 00:01:23]} Rd2 {[%clk 00:02:02]}
{[%emt 00:00:18]} 34. Qa4 {[%clk 00:09:00]} {[%emt 00:00:14]} Ne5 {[%clk
00:01:29]} {[%emt 00:00:44]} 35. Qxa7+ {[%clk 00:08:57]} {[%emt 00:00:13]} Kh8
{[%clk 00:01:38]} 36. Qb8+ {[%clk 00:08:31]} {[%emt 00:00:37]} Kg7 {[%clk
00:01:45]} {[%emt 00:00:03]} 37. Qc7+ {[%clk 00:08:33]} {[%emt 00:00:08]} Kf8
{[%clk 00:01:21]} {[%emt 00:00:34]} 38. Qd8+ {[%clk 00:08:06]} {[%emt
00:00:37]} Kg7 {[%clk 00:01:27]} {[%emt 00:00:05]} 39. Qe7+ {[%clk 00:07:55]}
{[%emt 00:00:21]} Nf7 {[%clk 00:01:00]} {[%emt 00:00:36]} 40. Bd5 {[%clk
00:07:35]} {[%emt 00:00:30]} Qxf2+ {[%clk 00:00:54]} {[%emt 00:00:16]} 41. Kh1
{[%clk 00:07:44]} {[%emt 00:00:02]} h5 {[%clk 00:00:49]} {[%emt 00:00:15]} 42.
Qxf7+ {[%clk 00:07:48]} {[%emt 00:00:05]} Kh6 {[%clk 00:00:58]} {[%emt
00:00:01]} 43. Qf8+ {[%clk 00:07:06]} {[%emt 00:00:52]} Kg5 {[%clk 00:01:07]}
{[%emt 00:00:02]} 44. Qe7+ {[%clk 00:07:05]} {[%emt 00:00:10]} Kh6 {[%clk
00:01:13]} {[%emt 00:00:05]} 45. Re1 {[%clk 00:06:44]} {[%emt 00:00:30]} Qg3
{[%clk 00:00:49]} {[%emt 00:00:33]} 46. h4 {[%clk 00:06:24]} {[%emt 00:00:31]}
Ra2 {[%clk 00:00:27]} {[%emt 00:00:32]} 47. Qf8+ {[%clk 00:06:23]} {[%emt
00:00:11]} 1-0